bitfinex/quotes_ETHUSD_20250214
["timestamp","ask_amount","ask_price","bid_price","bid_amount"]
[1739552662251,1.6338,2737.0,2736.5,3.0]
[1739552662852,1.6338,2737.0,2736.5,6.65429]
[1739552663068,1.6338,2737.0,2736.5,3.0]
[1739552663254,1.6338,2737.0,2736.3,3.95152]
[1739552663583,1.6338,2737.0,2736.2,3.0]
[1739552663584,1.6338,2736.9,2736.2,3.297]
[1739552663929,1.6338,2736.6,2736.2,3.0]
[1739552664931,1.6338,2736.6,2736.1,0.1495013]
[1739552665132,4.39532567,2737.1,2736.1,0.1495013]
[1739552665133,1.6338,2737.0,2736.2,0.015]
[1739552665383,1.6338,2737.0,2736.6,3.0]
[1739552665870,1.6338,2737.0,2736.7,3.65395]
[1739552666235,1.6338,2737.0,2736.9,3.0]
[1739552666451,2.34930517,2737.3,2737.1,3.0]
[1739552666674,2.34930517,2737.3,2736.9,0.297]
[1739552666861,6.00255517,2737.3,2736.9,0.297]
[1739552667369,2.34930517,2737.3,2736.7,3.951]
[1739552667571,2.34930517,2737.3,2736.8,3.0]
[1739552667779,2.34930517,2737.3,2737.0,3.65361]
[1739552668274,2.34930517,2737.3,2736.8,7.30758]
[1739552668574,2.34930517,2737.3,2736.9,6.65376]
[1739552668732,1.6338,2737.3,2737.2,3.65336]
[1739552668940,5.28623,2737.9,2737.1,6.65345]
[1739552669139,3.65259,2737.8,2737.0,3.0]
[1739552669346,1.6338,2737.6,2737.0,3.0]
[1739552669944,1.6338,2737.6,2737.0,6.65363]
[1739552670137,1.6338,2737.6,2737.0,3.0]
[1739552670381,3.65301,2737.5,2736.7,3.65394]
[1739552670584,5.28691,2737.4,2736.8,0.296]
[1739552670786,1.6338,2737.4,2737.0,3.0]
[1739552670953,1.6338,2737.4,2736.8,0.296]
[1739552671156,1.6338,2737.4,2736.8,6.94987]
[1739552671355,1.6338,2737.4,2736.9,0.296]
[1739552672774,0.365238,2738.0,2737.3,3.65323]
[1739552672975,2.0355488,2737.9,2737.2,3.65335]
[1739552673286,1.6338,2737.9,2737.5,3.65288]
[1739552673650,1.6338,2737.9,2737.8,3.65256]
[1739552673845,1.6338,2737.9,2737.8,6.65256]
[1739552674051,1.6338,2738.6,2738.1,3.65215]
[1739552674249,0.71694334,2738.5,2738.1,3.65215]
[1739552674648,1.86887433,2738.4,2737.8,3.0]
[1739552674878,1.86887433,2738.4,2737.7,3.65261]
[1739552674879,1.6338,2738.4,2738.1,3.65214]
[1739552675085,1.6338,2738.7,2738.6,3.6515]
[1739552675289,1.6338,2738.7,2738.6,6.6515]
[1739552675485,1.6338,2738.7,2738.6,3.0]
[1739552676590,1.6338,2738.7,2738.2,0.296]
[1739552676765,1.6556,2738.6,2737.8,3.65255]
[1739552676958,0.32894,2738.5,2737.8,3.65255]
[1739552677363,0.32894,2738.5,2737.9,3.0]
[1739552677792,0.32894,2738.5,2737.8,3.65255]
[1739552678792,0.32894,2738.5,2737.9,3.65238]
[1739552678944,0.32894,2738.5,2737.9,3.0]
[1739552679147,0.563606,2738.4,2737.9,3.0]
[1739552679767,1.04193892,2738.5,2737.9,3.0]
[1739552679968,0.32894,2738.5,2738.1,3.65216]
[1739552680205,0.32894,2738.5,2738.2,3.65202]
[1739552680380,0.32894,2738.5,2738.2,3.65195]
[1739552680689,1.6556,2738.6,2738.3,3.0]
[1739552680876,2.38233855,2738.6,2737.9,3.0]
[1739552681796,2.38233855,2738.6,2738.1,3.0]
[1739552682708,2.38233855,2738.6,2738.1,6.65213]
[1739552682870,1.6556,2738.6,2738.3,3.65178]
[1739552683196,1.6556,2738.6,2738.5,3.65163]
[1739552683400,11.1,2739.0,2738.9,3.0]
[1739552683597,16.65,2739.0,2738.9,6.6511]
[1739552684764,22.2,2739.0,2738.9,6.6511]
[1739552684954,22.2,2739.0,2738.9,3.0]
[1739552685160,22.2,2739.0,2738.9,0.296]
[1739552685396,22.2,2739.0,2738.9,3.296]
[1739552685598,22.2,2739.0,2738.9,3.0]
[1739552685752,22.2,2739.0,2738.9,8.4796]
[1739552686395,27.75,2739.0,2738.9,8.4796]
[1739552687558,33.3,2739.0,2738.9,8.4796]
[1739552688008,33.3,2739.0,2738.9,17.2196]
[1739552688701,33.3,2739.0,2738.9,16.9236]
[1739552689002,38.85,2739.0,2738.9,17.2111]
[1739552689497,38.85,2739.0,2738.9,16.9161]
[1739552689692,38.85,2739.0,2738.9,15.6861]
[1739552689885,38.85,2739.0,2738.9,15.3911]
[1739552690087,44.4,2739.0,2738.9,15.6861]
[1739552690500,44.4,2739.0,2738.9,15.6851]
[1739552691172,44.4,2739.0,2738.9,15.7001]
[1739552691518,49.95,2739.0,2738.9,15.7001]
[1739552692284,40.8226,2739.0,2738.9,17.2176]
[1739552692483,37.17164,2739.0,2738.9,17.2176]
[1739552692711,42.72164,2739.0,2738.9,17.2176]
[1739552694916,48.27164,2739.0,2738.9,17.4664]
[1739552695115,53.82164,2739.0,2738.9,17.1724]
[1739552695345,53.82164,2739.0,2738.9,12.9479]
[1739552696461,59.37164,2739.0,2738.9,15.9479]
[1739552696743,59.37164,2739.0,2738.9,7.1929]
[1739552697630,64.92164,2739.0,2738.9,7.1929]
[1739552698633,70.47164,2739.0,2738.9,7.2079]
[1739552700015,70.5452,2739.0,2738.9,7.7579]
[1739552700237,39.41800283,2739.0,2738.9,23.83377355]
[1739552700445,36.53742397,2739.0,2738.9,23.83377355]
[1739552700650,36.53742397,2739.0,2738.9,23.34077355]
[1739552700824,36.53742397,2739.0,2738.9,23.4455]
[1739552701025,36.53742397,2739.0,2738.9,6.8999]
[1739552701346,36.53742397,2739.0,2738.9,0.2488]
[1739552701347,42.08742397,2739.0,2738.9,0.2488]
[1739552701735,42.08742397,2739.0,2738.9,0.5438]
[1739552702168,42.08742397,2739.0,2738.9,0.2488]
[1739552702492,1.5735,2738.7,2737.9,3.65238]
[1739552702779,1.5735,2738.6,2738.1,0.295]
[1739552704092,1.5735,2738.6,2738.0,6.94726]
[1739552704744,1.5735,2738.6,2737.8,0.295]
[1739552704954,1.5735,2738.4,2737.6,3.65283]
[1739552705294,1.5735,2738.4,2737.6,3.94783]
[1739552705435,1.5735,2738.4,2737.7,3.6526]
[1739552705947,1.5735,2738.4,2737.7,0.015]
[1739552706135,1.5735,2738.4,2737.8,3.65256]
[1739552706497,1.5735,2738.4,2737.6,3.65279]
[1739552706795,1.5735,2738.4,2737.7,3.94669]
[1739552706999,1.5735,2738.4,2737.7,0.294]
[1739552707334,2.096015,2738.4,2737.7,3.294]
[1739552707636,2.096015,2738.4,2737.7,6.94668]
[1739552707840,2.096015,2738.4,2737.7,0.294]
[1739552708077,2.096015,2738.4,2737.2,8.755]
[1739552708078,1.5799,2738.1,2737.2,8.755]
[1739552708244,3.65286,2737.6,2736.7,8.74]
[1739552708447,1.5799,2737.6,2736.8,0.294]
[1739552708977,1.5799,2737.5,2736.7,3.0]
[1739552709148,1.5799,2737.5,2736.8,0.295]
[1739552709329,1.5799,2737.4,2736.8,0.295]
[1739552709530,1.5799,2737.3,2736.8,0.295]
[1739552709995,5.23328,2737.2,2736.6,3.0]
[1739552710193,1.5799,2737.1,2736.5,0.294]
[1739552710473,1.5799,2737.1,2736.3,3.65455]
[1739552710689,1.5799,2737.1,2736.4,3.0]
[1739552710902,1.5799,2737.0,2736.2,3.9487]
[1739552711189,1.5799,2737.0,2736.3,3.65456]
[1739552711539,1.5799,2736.9,2736.1,0.1495013]
[1739552711740,1.5799,2737.0,2736.1,0.4435013]
[1739552711936,1.5799,2737.0,2736.5,3.6542]
[1739552712139,1.5799,2737.0,2736.4,3.0]
[1739552712373,1.5799,2736.8,2736.1,3.1495013]
[1739552712636,1.5799,2736.8,2736.1,0.1495013]
[1739552712995,1.5799,2736.7,2736.2,3.65464]
[1739552713199,1.5799,2736.7,2736.4,3.0]
[1739552713345,1.5799,2736.7,2736.1,0.1495013]
[1739552713545,1.5799,2736.6,2736.1,0.1495013]
[1739552713740,5.23418,2736.6,2736.1,0.1495013]
[1739552713975,3.65461,2736.3,2736.1,0.1495013]
[1739552714250,3.65461,2736.3,2735.4,3.65565]
[1739552714251,1.5799,2735.8,2735.0,3.65629]
[1739552714436,1.5799,2735.8,2735.0,3.6563]
[1739552714841,1.5799,2735.8,2734.9,3.0]
[1739552715037,1.5799,2735.5,2734.7,0.305]
[1739552715239,1.5799,2735.5,2734.7,0.01]
[1739552715471,1.5799,2735.5,2734.8,3.0]
[1739552716076,1.5799,2735.5,2735.1,3.0]
[1739552716373,1.5799,2736.4,2735.7,3.0]
[1739552716536,1.5799,2736.4,2735.6,3.0]
[1739552716537,5.23441,2736.4,2735.6,3.0]
[1739552716737,3.65457,2736.3,2735.5,3.0]
[1739552716972,1.5799,2736.2,2735.5,3.0]
[1739552717571,1.5799,2736.2,2735.8,3.0]
[1739552717741,1.5799,2737.1,2736.2,3.65467]
[1739552717941,1.5799,2737.1,2736.2,0.295]
[1739552718142,1.5799,2737.1,2736.7,3.60393]
[1739552718465,1.5799,2737.1,2736.3,3.0]
[1739552718466,1.5799,2737.0,2736.2,3.95062]
[1739552718668,1.5799,2737.0,2736.3,3.0]
[1739552719049,3.65378,2736.9,2736.2,0.296]
[1739552719256,1.5799,2736.8,2736.1,3.296]
[1739552719464,1.5799,2736.8,2736.1,6.65476]
[1739552719658,1.5799,2736.8,2736.3,3.0]
[1739552720071,1.5799,2736.8,2736.5,3.65429]
[1739552720259,1.5799,2736.8,2736.6,6.65416]
[1739552720466,1.5799,2736.8,2736.6,3.0]
[1739552721088,1.5799,2736.8,2736.4,6.65442]
[1739552721449,1.5799,2736.8,2736.4,10.30876]
[1739552721749,1.5799,2736.8,2736.4,6.65434]
[1739552722159,1.5799,2736.8,2736.5,3.65426]
[1739552722488,1.5799,2736.8,2736.4,3.0]
[1739552722795,1.6252,2737.7,2736.9,3.0]
[1739552722950,1.6252,2737.5,2736.9,3.0]
[1739552723151,1.6252,2737.3,2736.7,0.295]
[1739552723346,1.6252,2737.3,2736.7,3.295]
[1739552723584,1.6252,2737.3,2737.0,3.65355]
[1739552723812,1.6252,2737.3,2737.1,3.0]
[1739552724109,1.6252,2737.3,2737.2,6.65336]
[1739552724611,1.6252,2738.0,2737.2,6.65328]
[1739552724810,1.6252,2738.0,2737.4,3.65308]
[1739552725103,1.6252,2738.0,2737.2,6.65328]
[1739552725270,1.6252,2738.0,2737.3,3.0]
[1739552725449,1.6252,2738.0,2737.5,3.0]
[1739552725649,1.6252,2738.0,2737.3,6.6532]
[1739552725876,1.6252,2738.0,2737.5,3.0]
[1739552726482,1.97237759,2738.0,2737.5,3.0]
[1739552728289,1.97237759,2738.0,2736.8,12.40137]
[1739552728290,3.6525,2737.9,2737.0,3.65351]
[1739552728477,1.6252,2737.7,2737.0,3.65351]
[1739552728789,1.6252,2737.7,2737.1,3.0]
[1739552728958,5.27794,2737.7,2737.1,3.0]
[1739552729156,0.527794,2737.6,2737.1,3.0]
[1739552729696,1.6252,2737.5,2736.7,0.294]
[1739552729899,5.27864,2737.2,2736.7,0.294]
[1739552730059,1.6252,2737.2,2736.7,0.294]
[1739552730256,3.65383,2736.9,2736.2,0.294]
[1739552730557,1.6252,2736.6,2735.8,3.65515]
[1739552730783,4.23144609,2736.8,2735.3,8.74]
[1739552730784,3.65451,2736.4,2735.5,3.65556]
[1739552730989,3.65465,2736.3,2735.6,0.295]
[1739552731295,3.65465,2736.3,2735.6,3.295]
[1739552731296,1.6252,2736.2,2735.6,3.295]
[1739552731793,2.153185,2736.2,2735.6,3.0]
[1739552732001,2.153185,2736.2,2735.5,3.65558]
[1739552732493,0.08648906,2736.1,2735.5,3.65558]
[1739552732922,0.08648906,2736.1,2735.6,3.0]
[1739552733767,0.08334562,2736.0,2735.6,3.0]
[1739552734205,0.08334562,2736.0,2735.3,3.65582]
[1739552734401,1.6252,2735.9,2735.3,3.65582]
[1739552734575,1.6252,2735.9,2735.4,3.0]
[1739552734765,0.08314044,2735.8,2735.4,3.0]
[1739552735374,0.08314044,2735.8,2735.3,3.0]
[1739552735576,0.08314044,2735.8,2735.7,3.0]
[1739552735903,0.08309726,2735.8,2735.7,3.0]
[1739552736882,0.08309726,2735.8,2735.7,6.65537]
[1739552737284,0.08648906,2736.1,2736.0,6.65497]
[1739552737528,0.08648906,2736.1,2736.0,6.94797]
[1739552738734,0.08648906,2736.1,2736.0,6.96297]
[1739552740578,9.06e-06,2736.1,2736.0,6.96297]
[1739552740908,1.6375,2736.8,2736.3,3.65456]
[1739552741108,1.6375,2736.8,2735.9,3.6551]
[1739552741309,1.6375,2736.8,2736.6,3.65415]
[1739552741310,0.07228191,2736.7,2736.6,3.65415]
[1739552741496,1.6375,2736.8,2736.6,3.65415]
[1739552741695,0.07242139,2736.7,2736.6,3.65415]
[1739552742006,1.6375,2736.8,2736.6,3.0]
[1739552742414,0.07228191,2736.7,2736.6,3.0]
[1739552742615,0.07228191,2736.7,2736.6,6.65416]
[1739552742805,1.6375,2736.8,2736.6,3.0]
[1739552743111,0.07216649,2736.7,2736.6,3.0]
[1739552743272,1.6375,2736.8,2736.6,3.0]
[1739552743469,0.07242581,2736.7,2736.6,6.65416]
[1739552743686,1.6375,2736.8,2736.6,3.0]
[1739552743883,0.07242581,2736.7,2736.6,6.65415]
[1739552744074,1.6375,2736.8,2736.7,6.65403]
[1739552744493,1.7100061,2736.8,2736.6,3.65414]
[1739552745596,1.7100061,2736.8,2736.7,3.0]
[1739552745797,1.7100061,2736.8,2736.7,6.65403]
[1739552746241,1.6375,2737.1,2736.9,3.65368]
[1739552746418,1.6375,2737.1,2736.7,3.65394]
[1739552746606,1.6375,2737.1,2736.8,3.65382]
[1739552746805,1.6375,2737.1,2736.9,3.65376]
[1739552747006,1.6375,2737.1,2736.8,3.65382]
[1739552747240,1.6375,2737.1,2736.8,3.6538]
[1739552747528,1.87266552,2737.1,2736.6,3.65414]
[1739552747730,1.6375,2737.1,2736.4,0.293]
[1739552747962,1.6375,2737.1,2736.7,3.0]
[1739552748235,1.6375,2737.1,2736.8,3.65388]
[1739552748611,1.6375,2737.1,2736.7,3.65403]
[1739552748905,1.6375,2737.1,2736.4,3.94533]
[1739552749121,1.6375,2737.1,2736.5,3.0]
[1739552749438,1.6375,2737.1,2736.4,0.291]
[1739552749611,1.6375,2737.1,2736.7,3.65403]
[1739552749809,1.6375,2737.1,2736.6,3.0]
[1739552750135,5.291,2737.1,2736.4,3.291]
[1739552750344,3.6537,2737.0,2736.4,3.0]
[1739552750546,2.00287,2736.9,2736.4,3.0]
[1739552750746,2.00287,2736.9,2736.4,6.65442]
[1739552750950,1.6375,2736.9,2736.5,3.65426]
[1739552751299,1.6375,2736.9,2736.4,3.0]
[1739552751494,1.6375,2736.9,2736.6,3.65404]
[1739552752058,0.2,2737.7,2736.8,3.0]
[1739552752211,1.5272,2737.6,2737.3,3.65312]
[1739552752414,1.5272,2737.6,2737.1,0.291]
[1739552752638,1.5272,2737.6,2737.0,3.0]
[1739552752843,1.5272,2737.6,2737.1,3.94442]
[1739552753042,2.11853904,2737.6,2737.1,3.94442]
[1739552753454,3.65256,2737.8,2737.1,3.94442]
[1739552753455,5.17958,2738.0,2737.2,6.65336]
[1739552753754,0.73692021,2737.7,2737.2,6.65336]
[1739552753932,1.5272,2737.6,2737.2,3.0]
[1739552754563,1.5272,2737.6,2737.4,3.65303]
[1739552754732,1.5272,2737.6,2737.5,6.65296]
[1739552754938,1.5272,2737.6,2737.5,3.0]
[1739552755620,0.74876357,2737.9,2737.5,3.0]
[1739552755621,2.27596357,2737.9,2737.5,6.65296]
[1739552755945,2.27596357,2737.9,2737.5,3.0]
[1739552756114,1.5272,2737.9,2737.6,3.65276]
[1739552756315,0.0725801,2737.8,2737.7,3.6527]
[1739552756514,1.5272,2738.2,2738.1,6.65216]
[1739552756729,1.5272,2738.9,2738.2,3.652]
[1739552756931,0.07351841,2738.8,2738.2,3.943]
[1739552757419,0.07351841,2738.8,2738.2,3.94294]
[1739552757615,0.71341108,2738.6,2738.2,3.94294]
[1739552757814,0.71341108,2738.6,2738.1,3.0]
[1739552758045,0.07314611,2738.5,2738.2,35.291]
[1739552758355,1.5272,2738.4,2738.2,35.291]
[1739552758533,1.5272,2738.4,2738.2,0.291]
[1739552758729,0.07304746,2738.3,2737.9,3.0]
[1739552758954,0.07304746,2738.3,2737.9,3.291]
[1739552759524,0.07304746,2738.3,2738.0,3.65222]
[1739552759957,0.07304746,2738.3,2737.9,3.291]
[1739552760558,0.07304746,2738.3,2737.9,6.94332]
[1739552761230,0.07304746,2738.3,2738.0,3.65226]
[1739552761425,0.07304746,2738.3,2738.1,3.65215]
[1739552761620,0.07304746,2738.3,2738.2,6.65203]
[1739552762169,1.5272,2738.7,2738.3,3.0]
[1739552762347,1.5272,2738.7,2738.4,3.65166]
[1739552762655,1.5272,2738.7,2738.4,3.65165]
[1739552762877,0.72218343,2738.8,2738.6,3.65141]
[1739552763221,0.72218343,2738.8,2738.5,3.65159]
[1739552763439,0.72218343,2738.8,2738.6,3.0]
[1739552763649,0.07010071,2738.7,2738.6,6.6515]
[1739552763851,0.07010071,2738.7,2738.6,3.0]
[1739552764162,0.72218343,2738.8,2738.1,3.65207]
[1739552764367,1.5272,2738.7,2738.2,0.291]
[1739552764547,1.5272,2738.7,2738.3,3.0]
[1739552764754,1.5272,2738.7,2738.3,6.65183]
[1739552765772,5.17863,2738.7,2738.1,3.291]
[1739552766427,5.17863,2738.7,2738.1,0.291]
[1739552766641,4.5039821,2738.6,2738.1,0.291]
[1739552767028,0.8524721,2738.6,2738.1,0.291]
[1739552767224,0.07060767,2738.5,2738.1,0.291]
[1739552768074,0.07060767,2738.5,2738.1,3.291]
[1739552768426,0.07060767,2738.5,2738.3,3.65183]
[1739552768627,0.07060767,2738.5,2738.4,3.65176]
[1739552768822,54.84502397,2739.0,2738.6,3.6515]
[1739552769029,0.71518591,2738.9,2738.6,3.6515]
[1739552769481,0.71518591,2738.9,2738.4,3.65169]
[1739552769633,3.80633374,2738.8,2738.4,3.65169]
[1739552769975,0.71518591,2738.9,2738.4,3.65169]
[1739552770489,0.71518591,2738.9,2738.4,7.30339]
[1739552770627,0.71518591,2738.9,2738.4,3.65169]
[1739552770833,0.71518591,2738.9,2738.5,3.65163]
[1739552771026,0.71518591,2738.9,2738.6,3.65149]
[1739552771250,0.71518591,2738.9,2738.2,35.0]
[1739552771251,58.73742397,2739.0,2738.9,3.6511]
[1739552771426,64.28742397,2739.0,2738.9,3.6511]
[1739552771630,64.28742397,2739.0,2738.9,6.6511]
[1739552772134,64.28742397,2739.0,2738.9,6.6661]
[1739552772469,64.28742397,2739.0,2738.9,16.9873]
[1739552772641,69.83742397,2739.0,2738.9,16.9873]
[1739552772844,69.83742397,2739.0,2738.9,16.9723]
[1739552773057,69.83742397,2739.0,2738.9,17.2613]
[1739552773779,69.83742397,2739.0,2738.9,17.2763]
[1739552773979,75.38742397,2739.0,2738.9,17.2763]
[1739552774481,66.26002397,2739.0,2738.9,17.2763]
[1739552774836,66.26002397,2739.0,2738.9,52.2763]
[1739552775231,71.81002397,2739.0,2738.9,52.2763]
[1739552775647,71.81002397,2739.0,2738.9,17.2763]
[1739552776553,77.36002397,2739.0,2738.9,16.9873]
[1739552776765,77.36002397,2739.0,2738.9,17.2763]
[1739552777372,77.36002397,2739.0,2738.9,16.9873]
[1739552777574,77.36002397,2739.0,2738.9,17.2753]
[1739552777738,82.91002397,2739.0,2738.9,17.2753]
[1739552779037,88.46002397,2739.0,2738.9,17.2753]
[1739552779458,88.46002397,2739.0,2738.9,16.9873]
[1739552779663,88.46002397,2739.0,2738.9,52.2753]
[1739552780277,94.08099469,2739.0,2738.9,52.2753]
[1739552781555,99.63099469,2739.0,2738.9,52.2753]
[1739552782899,105.18099469,2739.0,2738.9,52.2753]
[1739552784068,110.73099469,2739.0,2738.9,52.2753]
[1739552784263,110.73099469,2739.0,2738.9,51.9723]
[1739552784488,110.73099469,2739.0,2738.9,50.6791]
[1739552785367,116.28099469,2739.0,2738.9,50.3911]
[1739552785573,116.28099469,2739.0,2738.9,50.6791]
[1739552786621,121.83099469,2739.0,2738.9,50.6791]
[1739552786997,121.83099469,2739.0,2738.9,50.6941]
[1739552787170,121.83099469,2739.0,2738.9,52.2791]
[1739552787783,127.38099469,2739.0,2738.9,52.2791]
[1739552788106,123.73003469,2739.0,2738.9,52.2791]
[1739552788303,112.77715469,2739.0,2738.9,58.1691]
[1739552789303,111.02523469,2739.0,2738.9,58.1691]
[1739552790307,103.72331469,2739.0,2738.9,58.1691]
[1739552790513,109.27331469,2739.0,2738.9,58.1691]
[1739552790817,109.27331469,2739.0,2738.9,58.89626382]
[1739552791409,103.79687469,2739.0,2738.9,58.89626382]
[1739552791704,94.90338778,2739.0,2738.9,58.99626382]
[1739552792410,89.42694778,2739.0,2738.9,58.99626382]
[1739552792629,88.67864779,2739.0,2738.9,60.99626382]
[1739552792772,85.09646821,2739.0,2738.9,61.19626382]
[1739552793082,90.64646821,2739.0,2738.9,61.19626382]
[1739552793612,85.17002821,2739.0,2738.9,58.89626382]
[1739552794170,85.17002821,2739.0,2738.9,54.3311]
[1739552794383,90.72002821,2739.0,2738.9,3.6511]
[1739552794741,90.72002821,2739.0,2738.9,3.9391]
[1739552795080,1.6023,2738.9,2738.6,35.0]
[1739552795530,0.06684186,2738.8,2738.7,3.0]
[1739552797117,0.06684186,2738.8,2738.6,35.0]
[1739552797324,0.06684186,2738.8,2738.5,0.288]
[1739552797818,0.06684186,2738.8,2738.5,3.288]
[1739552797992,0.06684186,2738.8,2738.5,0.288]
[1739552798803,0.06684186,2738.8,2738.5,3.93953]
[1739552799503,0.06684186,2738.8,2738.6,3.0]
[1739552799996,0.06684186,2738.8,2738.7,6.65136]
[1739552800398,0.06684186,2738.8,2738.7,6.66636]
[1739552800615,90.64905749,2739.0,2738.9,3.6511]
[1739552800817,96.19905749,2739.0,2738.9,41.6511]
[1739552801017,96.19905749,2739.0,2738.9,38.0]
[1739552801212,96.19905749,2739.0,2738.9,41.6511]
[1739552801904,96.26076939,2739.0,2738.9,38.0]
[1739552802106,103.36836939,2739.0,2738.9,3.0]
[1739552803406,108.91836939,2739.0,2738.9,3.0]
[1739552803843,108.91836939,2739.0,2738.9,6.6511]
[1739552804138,107.36076939,2739.0,2738.9,6.6511]
[1739552804523,112.91076939,2739.0,2738.9,6.6511]
[1739552804906,112.91076939,2739.0,2738.9,6.6661]
[1739552805319,112.91076939,2739.0,2738.9,6.9541]
[1739552805523,112.91076939,2739.0,2738.9,6.6661]
[1739552805712,112.91076939,2739.0,2738.9,6.9541]
[1739552805911,118.46076939,2739.0,2738.9,6.9541]
[1739552807347,124.01076939,2739.0,2738.9,6.9541]
[1739552807552,124.01076939,2739.0,2738.9,41.9541]
[1739552808546,129.56076939,2739.0,2738.9,41.9541]
[1739552809751,129.56076939,2739.0,2738.9,50.6941]
[1739552809752,135.11076939,2739.0,2738.9,50.6941]
[1739552811177,140.66076939,2739.0,2738.9,50.6941]
[1739552811614,140.66076939,2739.0,2738.9,50.4061]
[1739552811834,140.66076939,2739.0,2738.3,3.6519]
[1739552811835,144.46710313,2739.0,2738.3,3.6519]
[1739552812144,140.66076939,2739.0,2738.9,3.6511]
[1739552812350,146.21076939,2739.0,2738.9,6.6511]
[1739552813163,146.21076939,2739.0,2738.9,3.0]
[1739552813540,151.76076939,2739.0,2738.9,3.0]
[1739552813746,151.76076939,2739.0,2738.9,6.6511]
[1739552814938,157.31076939,2739.0,2738.9,6.6511]
[1739552816056,157.31076939,2739.0,2738.9,41.6511]
[1739552816238,162.86076939,2739.0,2738.9,41.6511]
[1739552816966,162.86076939,2739.0,2738.9,41.6661]
[1739552817479,168.41076939,2739.0,2738.9,41.6661]
[1739552818347,166.58528939,2739.0,2738.9,50.9561]
[1739552818655,166.58528939,2739.0,2738.9,52.5377]
[1739552818860,172.13528939,2739.0,2738.9,52.5377]
[1739552819877,172.13528939,2739.0,2738.9,57.8777]
[1739552820073,170.38336939,2739.0,2738.9,57.8777]
[1739552820253,168.55788939,2739.0,2738.9,57.8777]
[1739552820450,161.25596939,2739.0,2738.9,57.8777]
[1739552820679,159.43048939,2739.0,2738.9,57.8777]
[1739552821362,164.98048939,2739.0,2738.9,57.8777]
[1739552821699,163.15500939,2739.0,2738.9,57.8777]
[1739552822047,155.85308939,2739.0,2738.9,57.8777]
[1739552822248,150.37664939,2739.0,2738.9,57.9777]
[1739552822458,135.93316248,2739.0,2738.9,58.1777]
[1739552822751,141.48316248,2739.0,2738.9,57.8777]
[1739552823146,139.65768248,2739.0,2738.9,57.8777]
[1739552823344,134.18124248,2739.0,2738.9,57.8777]
[1739552823783,133.66927311,2739.0,2738.9,57.8777]
[1739552823981,139.21927311,2739.0,2738.9,57.8777]
[1739552824198,137.39379311,2739.0,2738.9,57.8777]
[1739552824366,133.74283311,2739.0,2738.9,57.8777]
[1739552824556,133.3019456,2739.0,2738.9,58.0777]
[1739552825069,133.3019456,2739.0,2738.9,57.8777]
[1739552825248,137.0264656,2739.0,2738.9,57.3277]
[1739552825607,137.0264656,2739.0,2738.9,54.6157]
[1739552825748,0.84529783,2739.0,2738.9,58.1657]
[1739552825942,5.55,2739.5,2739.4,3.66543]
[1739552826175,5.55,2739.5,2739.4,15.40543]
[1739552827298,5.55,2739.5,2739.4,15.95543]
[1739552827473,5.55,2739.5,2739.4,17.58613]
[1739552827659,11.1,2739.5,2739.4,17.58613]
[1739552827863,11.14702062,2739.5,2739.4,17.58613]
[1739552828093,11.14702062,2739.5,2739.4,52.58613]
[1739552829097,16.69702062,2739.5,2739.4,50.95543]
[1739552830180,22.24702062,2739.5,2739.4,50.95543]
[1739552830382,22.24702062,2739.5,2739.4,56.29543]
[1739552830637,22.24702062,2739.5,2739.4,52.74543]
[1739552830897,22.24702062,2739.5,2739.4,9.27843]
[1739552831397,27.79702062,2739.5,2739.4,12.27843]
[1739552831797,27.79702062,2739.5,2739.4,11.99043]
[1739552832007,27.79702062,2739.5,2739.4,12.27843]
[1739552832539,33.34702062,2739.5,2739.4,12.29343]
[1739552832824,33.34702062,2739.5,2739.4,12.28593]
[1739552833271,33.34702062,2739.5,2739.4,47.28593]
[1739552834215,40.43842062,2739.5,2739.4,43.628]
[1739552834600,42.42777022,2739.5,2739.4,43.628]
[1739552835026,42.42777022,2739.5,2739.4,0.288]
[1739552835182,40.88637022,2739.5,2738.4,8.74]
[1739552835382,1.5414,2738.7,2738.4,3.93968]
[1739552835712,1.5414,2738.7,2738.2,3.65196]
[1739552836025,1.5414,2738.4,2738.3,3.0]
[1739552836338,1.5414,2738.4,2738.3,3.6519]
[1739552836514,1.5414,2738.4,2738.2,3.65196]
[1739552836885,0.04475878,2738.3,2738.2,3.65196]
[1739552837505,0.04475878,2738.3,2738.2,6.65196]
[1739552837711,0.04475878,2738.3,2738.2,3.65196]
[1739552837918,1.5414,2738.4,2738.3,3.6519]
[1739552838220,1.5414,2738.4,2738.2,6.65199]
[1739552838221,1.58700656,2738.4,2738.2,6.65199]
[1739552838549,1.58700656,2738.4,2738.3,3.6519]
[1739552838689,0.04560656,2738.4,2738.3,6.6519]
[1739552839017,1.6311,2739.2,2738.7,3.0]
[1739552839199,1.6311,2739.2,2739.0,3.65094]
[1739552839532,1.6311,2739.2,2739.1,6.65083]
[1739552839712,1.6311,2739.2,2739.1,3.0]
[1739552840024,1.6311,2739.2,2738.9,3.0]
[1739552840196,1.6311,2739.2,2738.7,3.0]
[1739552840197,2.34921,2739.2,2738.7,3.0]
[1739552840386,1.67714539,2739.1,2738.7,3.0]
[1739552840592,1.6311,2738.9,2738.4,12.39168]
[1739552841016,0.04451597,2738.8,2738.6,3.65148]
[1739552841295,1.5102,2738.7,2738.5,3.0]
[1739552841485,1.5102,2738.7,2738.3,3.65189]
[1739552841486,1.5102,2738.6,2738.3,3.65189]
[1739552841827,1.55455072,2738.6,2738.1,3.94005]